bitfinex-derivatives/quotes_BTCF0:USTF0_20251011
["timestamp","ask_amount","ask_price","bid_price","bid_amount"]
[1760199031928,0.83146809,111990.0,111980.0,0.1256406]
[1760199032128,0.3608,111990.0,111980.0,0.2356406]
[1760199032733,0.3608,111990.0,111980.0,0.6356406]
[1760199033330,0.3618,111990.0,111980.0,0.6356406]
[1760199033731,0.3608,111990.0,111980.0,0.6356406]
[1760199034331,0.3618,111990.0,111980.0,0.6356406]
[1760199035832,0.3608,111990.0,111980.0,0.6356406]
[1760199036031,0.3608,112000.0,111990.0,0.1256323]
[1760199036228,0.3608,112000.0,111990.0,0.2656323]
[1760199036533,0.3608,112000.0,111990.0,0.6656323]
[1760199036734,0.3608,112020.0,112010.0,0.1256087]
[1760199037035,0.92065029,112030.0,112020.0,0.1256078]
[1760199037237,0.92065029,112030.0,112020.0,0.2556078]
[1760199037433,0.451527,112030.0,112020.0,0.2556078]
[1760199037638,0.451527,112030.0,112020.0,0.6164078]
[1760199038638,0.001,112030.0,112020.0,0.6164078]
[1760199038840,0.452527,112030.0,112020.0,0.6164078]
[1760199039538,0.001,112030.0,112020.0,0.6164078]
[1760199039739,0.56048668,112030.0,112020.0,0.16642]
[1760199040038,0.56048668,112030.0,112020.0,0.14385]
[1760199040039,1.32228668,112030.0,112020.0,0.14385]
[1760199042341,0.92228668,112030.0,112020.0,0.14385]
[1760199042932,0.92228668,112030.0,112020.0,0.16642]
[1760199043138,0.4519794,112030.0,112020.0,0.16642]
[1760199043437,0.47230728,112030.0,112020.0,0.2556077]
[1760199043633,0.002,112030.0,112020.0,0.2556077]
[1760199043941,0.002,112030.0,112020.0,1.0164077]
[1760199045132,0.001,112030.0,112020.0,1.0164077]
[1760199045338,0.92027108,112050.0,112040.0,0.03602]
[1760199045547,0.3608,112060.0,112050.0,0.01378]
[1760199045740,0.92026668,112060.0,112050.0,0.13378]
[1760199046643,0.4499594,112060.0,112050.0,0.13378]
[1760199046943,0.99396221,112060.0,112050.0,0.13378]
[1760199047346,0.52365493,112060.0,112050.0,0.13378]
[1760199047636,0.99396221,112060.0,112050.0,0.13378]
[1760199047841,0.99596221,112060.0,112050.0,0.13378]
[1760199049038,0.52565493,112060.0,112050.0,0.13378]
[1760199049240,0.99596221,112060.0,112050.0,0.13378]
[1760199054749,1.39596221,112060.0,112050.0,0.13378]
[1760199055351,0.92565493,112060.0,112050.0,0.13378]
[1760199055547,1.39596221,112060.0,112050.0,0.13378]
[1760199057849,0.92565493,112060.0,112050.0,0.13378]
[1760199058153,0.99596221,112060.0,112050.0,0.13378]
[1760199059462,1.82858015,112060.0,112050.0,0.13378]
[1760199061258,0.0891655,112050.0,112040.0,0.0224002]
[1760199061460,1.35289072,112050.0,112040.0,0.0924002]
[1760199062460,1.35289072,112050.0,112040.0,0.08378]
[1760199062461,2.22947688,112050.0,112040.0,0.08378]
[1760199062657,1.77801427,112050.0,112040.0,0.08378]
[1760199062856,1.77901427,112050.0,112040.0,0.08378]
[1760199063457,1.81688205,112050.0,112040.0,0.08378]
[1760199064761,1.81688205,112050.0,112040.0,0.04878]
[1760199065959,0.87608905,112050.0,112040.0,0.04878]
[1760199066256,1.34648555,112050.0,112040.0,0.04878]
[1760199066756,0.94648555,112050.0,112040.0,0.04878]
[1760199067765,0.38692355,112050.0,112040.0,0.5601934]
[1760199068069,0.11532507,112050.0,112040.0,0.5601934]
[1760199068265,0.0911655,112050.0,112040.0,0.5601934]
[1760199068867,0.002,112050.0,112040.0,0.5601934]
[1760199070265,0.002,112050.0,112040.0,0.9209934]
[1760199074370,0.4499501,112070.0,112060.0,0.1237773]
[1760199074564,0.4499501,112070.0,112060.0,0.2437773]
[1760199074763,0.3608,112070.0,112060.0,0.2437773]
[1760199075466,0.3628,112070.0,112060.0,0.2437773]
[1760199076266,0.4519494,112070.0,112060.0,0.2437773]
[1760199076667,0.0911494,112070.0,112060.0,0.2437773]
[1760199076867,0.002,112070.0,112060.0,0.2437773]
[1760199077564,0.4333761,112090.0,112080.0,0.1018614]
[1760199077769,0.4333761,112090.0,112080.0,0.2437614]
[1760199077968,0.0725761,112090.0,112080.0,0.2437614]
[1760199078162,0.9203255,112100.0,112080.0,0.2437614]
[1760199078368,0.9203255,112100.0,112090.0,0.01272]
[1760199078568,0.9203255,112100.0,112090.0,0.13272]
[1760199078868,0.9203255,112100.0,112090.0,0.15462]
[1760199079572,0.9203255,112100.0,112090.0,0.13272]
[1760199080661,0.9203255,112100.0,112090.0,0.14171199]
[1760199081168,0.8331965,112100.0,112090.0,0.25274549]
[1760199081470,0.90479658,112100.0,112090.0,0.25274549]
[1760199081870,0.90279658,112100.0,112090.0,0.25274549]
[1760199082070,0.90479658,112100.0,112090.0,0.25274549]
[1760199082271,0.99392208,112100.0,112090.0,0.25274549]
[1760199082573,0.99392208,112100.0,112090.0,0.16361199]
[1760199082966,0.99392208,112100.0,112090.0,0.14171199]
[1760199084072,0.99392208,112100.0,112090.0,0.16361199]
[1760199084272,0.99392208,112100.0,112090.0,0.14171199]
[1760199085473,0.99392208,112100.0,112090.0,0.16361199]
[1760199085973,0.52352558,112100.0,112090.0,0.16361199]
[1760199086171,0.99392208,112100.0,112090.0,0.16361199]
[1760199087476,0.97455822,112100.0,112090.0,0.16361199]
[1760199089775,0.52463272,112100.0,112090.0,0.25274369]
[1760199090869,0.61375652,112100.0,112090.0,0.25274369]
[1760199091075,0.97455652,112100.0,112090.0,0.14171199]
[1760199093371,0.52352388,112100.0,112090.0,0.14171199]
[1760199093572,0.92446309,112100.0,112090.0,0.14171199]
[1760199094672,0.92446309,112100.0,112090.0,0.25274369]
[1760199094872,0.52352388,112100.0,112090.0,0.25274369]
[1760199095076,0.92446309,112100.0,112090.0,0.25274369]
[1760199095271,0.92246309,112100.0,112090.0,0.25274369]
[1760199095480,0.92346309,112100.0,112090.0,0.25274369]
[1760199096075,0.92346309,112100.0,112090.0,0.23084369]
[1760199096680,0.92346309,112100.0,112090.0,0.25274369]
[1760199096979,0.47353929,112100.0,112090.0,0.25274369]
[1760199098280,0.56266309,112100.0,112090.0,0.25274369]
[1760199098676,0.16172388,112100.0,112090.0,0.25274369]
[1760199099183,0.47353929,112100.0,112090.0,0.25274369]
[1760199099880,0.56266309,112100.0,112090.0,0.25274369]
[1760199101181,0.92346309,112100.0,112090.0,0.14171199]
[1760199102478,0.92346309,112100.0,112090.0,0.25266369]
[1760199102981,0.47353929,112100.0,112090.0,0.25266369]
[1760199103382,0.07260008,112100.0,112090.0,0.25266369]
[1760199105079,0.47353929,112100.0,112090.0,0.25266369]
[1760199105288,0.16172398,112100.0,112090.0,0.25266389]
[1760199105583,0.07260008,112100.0,112090.0,0.25266389]
[1760199106885,0.16172398,112100.0,112090.0,0.25266389]
[1760199107077,0.16172398,112100.0,112090.0,0.16353199]
[1760199107783,0.16172398,112100.0,112090.0,0.25266389]
[1760199108682,0.07260008,112100.0,112090.0,0.25266389]
[1760199109383,0.07260008,112100.0,112090.0,0.61346389]
[1760199114777,0.001,112100.0,112090.0,1.09318687]
[1760199115890,0.001,112100.0,112090.0,1.01346389]
[1760199122396,0.001,112100.0,112090.0,1.09318687]
[1760199122592,0.001,112100.0,112090.0,1.01346389]
[1760199123094,0.001,112100.0,112090.0,1.09318687]
[1760199123888,0.001,112100.0,112090.0,1.01346389]
[1760199130803,0.001,112100.0,112090.0,1.09318687]
[1760199137204,0.001,112100.0,112090.0,1.01346389]
[1760199137501,1.25169467,112100.0,112090.0,0.14171199]
[1760199137701,1.25169467,112100.0,112090.0,0.25417379]
[1760199137702,0.80177077,112100.0,112090.0,0.25417379]
[1760199138703,0.89089457,112100.0,112090.0,0.16504199]
[1760199138904,0.89089457,112100.0,112090.0,0.25417379]
[1760199139205,0.89089457,112100.0,112090.0,0.33389677]
[1760199139804,0.4901238,112100.0,112090.0,0.33389677]
[1760199140009,0.89089457,112100.0,112090.0,0.33389677]
[1760199140303,0.80177077,112100.0,112090.0,0.33389677]
[1760199140497,0.001,112100.0,112090.0,0.69469677]
[1760199140697,0.001,112100.0,112090.0,0.61497379]
[1760199141098,0.001,112100.0,112090.0,1.01497379]
[1760199144505,0.40177077,112100.0,112090.0,0.61497379]
[1760199144807,0.001,112100.0,112090.0,0.61497379]
[1760199146809,0.001,112100.0,112090.0,0.69512823]
[1760199150410,0.49089437,112100.0,112090.0,0.69512823]
[1760199150614,0.49089437,112100.0,112090.0,0.33432803]
[1760199152417,0.49089437,112100.0,112090.0,0.24519643]
[1760199153016,0.49089437,112100.0,112090.0,0.33432813]
[1760199153515,0.54109919,112100.0,112090.0,0.33432813]
[1760199155116,0.90189919,112100.0,112090.0,0.22186643]
[1760199155417,0.90189919,112100.0,112090.0,0.31099823]
[1760199155910,0.90189919,112100.0,112090.0,0.33432823]
[1760199156919,1.30189919,112100.0,112090.0,0.31099823]
[1760199157321,1.30189919,112100.0,112090.0,0.33432823]
[1760199158020,1.30189919,112100.0,112090.0,0.25417379]
[1760199159820,0.85197559,112100.0,112090.0,0.25417379]
[1760199160416,0.94109929,112100.0,112090.0,0.25417379]
[1760199162319,0.0901245,112100.0,112090.0,0.25417379]
[1760199162520,0.54110009,112100.0,112090.0,0.25417379]
[1760199163421,0.45197559,112100.0,112090.0,0.25417379]
[1760199163722,0.54110059,112100.0,112090.0,0.25417379]
[1760199165022,0.45197559,112100.0,112090.0,0.25417379]
[1760199165222,0.45197559,112100.0,112090.0,0.61497379]
[1760199169222,0.45197559,112100.0,112090.0,0.69512823]
[1760199171319,0.90189839,112100.0,112090.0,0.33432823]
[1760199172421,0.54109839,112100.0,112090.0,0.25417379]
[1760199172625,0.45197559,112100.0,112090.0,0.25417379]
[1760199172829,0.54109889,112100.0,112090.0,0.25417379]
[1760199173831,0.90189889,112100.0,112090.0,0.25417379]
[1760199177836,0.90189889,112100.0,112090.0,0.33432823]
[1760199178030,0.90189889,112100.0,112090.0,0.25417379]
[1760199180036,0.4509233,112100.0,112090.0,0.25417379]
[1760199180336,0.001,112100.0,112090.0,0.25417379]
[1760199180535,0.45197559,112100.0,112090.0,0.25417379]
[1760199181338,0.45197559,112100.0,112090.0,0.61497379]
[1760199181939,0.54109789,112100.0,112090.0,0.61497379]
[1760199182539,0.45197559,112100.0,112090.0,0.61497379]
[1760199183440,0.54109799,112100.0,112090.0,0.61497379]
[1760199183836,0.54009799,112100.0,112090.0,0.61497379]
[1760199184035,0.54109799,112100.0,112090.0,0.61497379]
[1760199184339,0.54109799,112100.0,112090.0,0.25417379]
[1760199184540,0.54109799,112100.0,112090.0,0.61497379]
[1760199184939,0.54009799,112100.0,112090.0,0.61497379]
[1760199185747,0.90089799,112100.0,112090.0,0.25417379]
[1760199189247,1.35187358,112100.0,112090.0,0.16504199]
[1760199189551,1.35187358,112100.0,112090.0,0.14171199]
[1760199189850,0.90089799,112100.0,112090.0,0.14171199]
[1760199190049,0.90089799,112100.0,112090.0,0.16361199]
[1760199190351,0.90089799,112100.0,112090.0,0.14171199]
[1760199191051,0.90089799,112100.0,112090.0,0.16361199]
[1760199191456,0.90089799,112100.0,112090.0,0.14171199]
[1760199192350,1.35187358,112100.0,112090.0,0.14171199]
[1760199192551,0.90089799,112100.0,112090.0,0.22186643]
[1760199192952,0.90089799,112100.0,112090.0,0.14171199]
[1760199193452,0.90089799,112100.0,112090.0,0.16414199]
[1760199198566,0.4499224,112100.0,112090.0,0.16414199]
[1760199198864,0.90089799,112100.0,112090.0,0.16414199]
[1760199202466,0.90089799,112100.0,112090.0,0.25327239]
[1760199208071,0.4499224,112100.0,112090.0,0.25327239]
[1760199208270,0.90089799,112100.0,112090.0,0.25327239]
[1760199210868,0.90089799,112100.0,112090.0,0.16414199]
[1760199211971,0.90089799,112100.0,112090.0,0.25327479]
[1760199215575,0.85084283,112100.0,112090.0,0.25327479]
[1760199218070,0.85084283,112100.0,112090.0,0.16414199]
[1760199224880,0.4499224,112100.0,112090.0,0.16414199]
[1760199225080,0.85084283,112100.0,112090.0,0.25327339]
[1760199225883,0.85084283,112100.0,112090.0,0.14171199]
[1760199227583,0.85084283,112100.0,112090.0,0.25390509]
[1760199233680,0.76172043,112100.0,112090.0,0.25390509]
[1760199234890,0.76172043,112100.0,112090.0,0.33405953]
[1760199235484,0.40092043,112100.0,112090.0,0.33405953]
[1760199235681,0.51965716,112110.0,112100.0,0.1017352]
[1760199235682,0.92057759,112110.0,112100.0,0.1017352]
[1760199235988,0.92057759,112110.0,112100.0,0.2547952]
[1760199237399,0.92157759,112110.0,112100.0,0.2547952]
[1760199241296,0.92156969,112110.0,112100.0,0.2547952]
[1760199244792,0.92156969,112110.0,112100.0,0.16567]
[1760199245290,0.83245349,112110.0,112100.0,0.2547947]
[1760199245998,0.92157019,112110.0,112100.0,0.2547947]
[1760199250793,0.92157019,112110.0,112100.0,0.16567]
[1760199252501,0.92157019,112110.0,112100.0,0.14261]
[1760199253004,0.92157019,112110.0,112100.0,0.16495]
[1760199261504,0.56077019,112110.0,112100.0,0.16495]
[1760199261705,0.92157019,112110.0,112100.0,0.16495]
[1760199264312,0.92157019,112110.0,112100.0,0.14261]
[1760199267010,1.32157019,112110.0,112100.0,0.14261]
[1760199276917,1.68237019,112110.0,112100.0,0.14261]
[1760199277517,2.18358924,112110.0,112100.0,0.14261]
[1760199278119,0.089125,112100.0,112090.0,0.02171199]
[1760199278321,0.90099474,112100.0,112090.0,0.06171199]
[1760199279723,0.90099474,112100.0,112090.0,0.08405199]
[1760199281024,0.90199474,112100.0,112090.0,0.08405199]
[1760199289032,1.75306448,112100.0,112090.0,0.05272]
[1760199289228,0.0891309,112090.0,112080.0,0.01272]
[1760199289429,1.35207038,112090.0,112080.0,0.14272]
[1760199289628,0.0891389,112080.0,112070.0,0.09287444]
[1760199289829,1.35207838,112080.0,112070.0,0.22287444]
[1760199290030,1.35207838,112080.0,112070.0,0.23172164]
[1760199290727,1.35207838,112080.0,112070.0,0.25481164]
[1760199292047,0.4499389,112080.0,112070.0,0.25481164]
[1760199292346,1.35207838,112080.0,112070.0,0.25481164]
[1760199292843,1.35207838,112080.0,112070.0,0.1746572]
[1760199294747,0.90100864,112080.0,112070.0,0.1746572]
[1760199295144,1.35207838,112080.0,112070.0,0.1746572]
[1760199295343,0.54020864,112080.0,112070.0,0.2638046]
[1760199295549,0.54020864,112080.0,112070.0,0.6246046]
[1760199295843,0.54020864,112080.0,112070.0,1.0246046]
[1760199299550,0.54020864,112080.0,112070.0,0.5354572]
[1760199299754,1.35207838,112080.0,112070.0,0.1746572]
[1760199299947,1.35207838,112080.0,112070.0,0.1515672]
[1760199300346,1.75207838,112080.0,112070.0,0.1515672]
[1760199301048,0.0891472,112070.0,112060.0,0.01398]
[1760199301350,0.9710958,112070.0,112060.0,0.13398]
[1760199301947,0.43087886,112070.0,112060.0,0.2462251]
[1760199302146,0.9710957,112070.0,112060.0,0.15707]
[1760199302652,0.9710957,112070.0,112060.0,0.2462257]
[1760199302854,0.8819486,112070.0,112060.0,0.2462257]
[1760199303052,0.9710963,112070.0,112060.0,0.2462257]
[1760199303252,0.9710963,112070.0,112060.0,0.15707]
[1760199303752,0.9710963,112070.0,112060.0,0.2462255]
[1760199304052,0.9710963,112070.0,112060.0,0.2548677]
[1760199305251,0.9710963,112070.0,112060.0,0.1657122]
[1760199305856,0.52002656,112070.0,112060.0,0.1657122]
[1760199306051,0.9710963,112070.0,112060.0,0.2548668]
[1760199306256,0.9710963,112070.0,112060.0,0.1657122]
[1760199307454,0.9710963,112070.0,112060.0,0.2548673]
[1760199308260,0.07007886,112070.0,112060.0,1.10593704]
[1760199308456,0.5211486,112070.0,112060.0,1.46673704]
[1760199308758,0.54021674,112070.0,112060.0,1.0156673]
[1760199308960,0.54021674,112070.0,112060.0,0.9265122]
[1760199309553,0.54021674,112070.0,112060.0,1.0156673]
[1760199309753,0.61282006,112070.0,112060.0,1.0156673]
[1760199311361,0.61282006,112070.0,112060.0,0.9265122]
[1760199313159,0.61282006,112070.0,112060.0,1.0156677]
[1760199318664,0.16175032,112070.0,112060.0,1.0156677]
[1760199318866,0.61282006,112070.0,112060.0,1.0156677]
[1760199320864,0.16175032,112070.0,112060.0,1.0156677]
[1760199321066,0.61282006,112070.0,112060.0,1.0156677]
[1760199322571,0.52367306,112070.0,112060.0,1.0156677]
[1760199322770,0.61281856,112070.0,112060.0,1.0156677]
[1760199325170,0.52367306,112070.0,112060.0,1.0156677]
[1760199326273,0.52367306,112070.0,112060.0,1.09582214]
[1760199326467,0.61281906,112070.0,112060.0,1.09582214]
[1760199328870,0.61281906,112070.0,112060.0,0.60666664]
[1760199329070,0.61281906,112070.0,112060.0,0.5265122]
[1760199329269,0.61281906,112070.0,112060.0,0.6156663]
[1760199329972,0.6176695,112070.0,112060.0,0.6156663]
[1760199330773,0.16659976,112070.0,112060.0,0.6156663]
[1760199330975,0.6176695,112070.0,112060.0,0.6156663]
[1760199331474,1.0176695,112070.0,112060.0,0.1657122]
[1760199331771,0.0891541,112060.0,112050.0,0.09408724]
[1760199331972,1.75209358,112060.0,112050.0,0.1439328]
[1760199332166,1.75694402,112060.0,112050.0,0.1439328]
[1760199332566,0.0891623,112050.0,112040.0,0.10266882]
[1760199332771,1.35210178,112050.0,112040.0,0.14266882]
[1760199332970,1.35210178,112050.0,112040.0,0.16408882]
[1760199332971,0.0891625,112050.0,112040.0,0.16408882]
[1760199333275,0.0891625,112050.0,112040.0,0.44473438]
[1760199333276,0.54408268,112050.0,112040.0,0.44473438]
[1760199333474,0.99515242,112050.0,112040.0,0.44473438]
[1760199333676,0.00494259,112050.0,112040.0,0.93390478]
[1760199333869,0.45601233,112050.0,112040.0,0.93590478]
[1760199334465,0.00494259,112050.0,112040.0,1.38697452]
[1760199334875,0.00494259,112050.0,112040.0,1.46712896]
[1760199335679,0.07260332,112070.0,112060.0,0.124335]
[1760199335872,0.45106974,112080.0,112070.0,0.1243269]
[1760199336072,0.90100524,112090.0,112080.0,0.1243208]
[1760199336378,0.90100524,112090.0,112080.0,0.15518]
[1760199336575,1.75207498,112090.0,112080.0,0.15518]
[1760199336780,1.75207498,112090.0,112080.0,0.13376]
[1760199337176,1.30100524,112090.0,112080.0,0.13376]
[1760199337476,1.25096553,112090.0,112080.0,0.13376]
[1760199337978,1.25096553,112090.0,112080.0,0.15518]
[1760199339273,1.25096553,112090.0,112080.0,0.13376]
[1760199340479,1.65199556,112090.0,112080.0,0.13376]
[1760199340874,0.0891397,112080.0,112070.0,0.01376]
[1760199341079,0.0891477,112070.0,112060.0,0.01376]
[1760199341274,0.85097773,112070.0,112060.0,0.14376]
[1760199342374,0.52163827,112070.0,112060.0,0.14376]
[1760199342574,0.9226683,112070.0,112060.0,0.14376]
[1760199342974,1.3226683,112070.0,112060.0,0.14376]
[1760199343576,1.34198302,112070.0,112060.0,0.14376]
[1760199346780,0.94198302,112070.0,112060.0,0.14376]
[1760199348084,0.94198302,112070.0,112060.0,0.16648]
[1760199348279,0.94198302,112070.0,112060.0,0.14376]
[1760199350286,0.94313811,112070.0,112060.0,0.14376]
[1760199350483,0.94313811,112070.0,112060.0,0.1658]
[1760199350886,0.94313811,112070.0,112060.0,0.14376]
[1760199351788,0.94313811,112070.0,112060.0,0.1658]
[1760199352488,0.94313811,112070.0,112060.0,0.14376]
[1760199353786,1.34313811,112070.0,112060.0,0.14376]
[1760199354291,1.34313811,112070.0,112060.0,0.13]
[1760199355083,1.34313811,112070.0,112060.0,0.14289]
[1760199359592,1.34313811,112070.0,112060.0,0.13]
[1760199360893,1.34313811,112070.0,112060.0,0.14289]
[1760199361996,0.0891651,112050.0,112040.0,0.02226438]
[1760199362198,0.87146494,112050.0,112040.0,0.15226438]
[1760199362990,0.87146494,112050.0,112040.0,0.15326438]
[1760199363388,0.85252618,112050.0,112040.0,0.15326438]
[1760199364098,0.85252618,112050.0,112040.0,0.15426438]
[1760199364788,1.61473217,112050.0,112040.0,0.14558]
[1760199364991,2.01473217,112050.0,112040.0,0.132]
[1760199365296,2.01473217,112050.0,112040.0,0.07489]
[1760199365891,0.0891731,112040.0,112030.0,0.01358]
[1760199366088,0.089181,112030.0,112020.0,0.02156641]
[1760199366291,0.85254208,112030.0,112020.0,0.07156641]
[1760199368498,0.92447934,112030.0,112020.0,0.07156641]
[1760199378794,0.52307335,112030.0,112020.0,0.07156641]
[1760199378998,0.92447934,112030.0,112020.0,0.07156641]
[1760199380603,0.52307335,112030.0,112020.0,0.07156641]
[1760199380805,0.92447934,112030.0,112020.0,0.07156641]
[1760199382206,0.92447934,112030.0,112020.0,0.09360641]
[1760199382507,0.92447934,112030.0,112020.0,0.07156641]
[1760199385104,0.92447934,112030.0,112020.0,0.09360641]
[1760199386703,0.07309235,112030.0,112020.0,0.49360641]
[1760199386904,0.3608,112050.0,112040.0,0.03597]
[1760199387106,0.85136319,112060.0,112050.0,0.03597]
[1760199387306,0.87531222,112060.0,112050.0,0.16597]
[1760199387504,0.47390623,112060.0,112050.0,0.16597]
[1760199387707,0.38474903,112060.0,112050.0,0.56597]
[1760199387907,0.47390523,112060.0,112050.0,0.16597]
[1760199388411,0.47490523,112060.0,112050.0,0.16597]
[1760199388816,0.47490523,112060.0,112050.0,0.14393]
[1760199389712,0.47490523,112060.0,112050.0,0.54393]
[1760199389918,0.47490523,112060.0,112050.0,0.56597]
[1760199390118,0.47590523,112060.0,112050.0,0.56597]
[1760199390317,0.11510523,112060.0,112050.0,0.56597]
[1760199391011,0.0911562,112060.0,112050.0,0.56597]
[1760199392618,0.002,112060.0,112050.0,0.6551349]
[1760199392921,0.091157,112060.0,112050.0,0.56597]
[1760199393419,0.091157,112060.0,112050.0,0.14393]
[1760199393724,0.451957,112060.0,112050.0,0.14393]
[1760199394024,0.451957,112060.0,112050.0,0.16597]
[1760199395010,0.451957,112060.0,112050.0,0.56597]
[1760199395619,0.002,112060.0,112050.0,0.6551349]
[1760199397026,0.0911562,112060.0,112050.0,0.6551349]
[1760199397321,0.0911562,112060.0,112050.0,1.0159349]
[1760199398926,0.002,112060.0,112050.0,1.0159349]
[1760199400427,0.091157,112060.0,112050.0,1.0159349]
[1760199402332,0.091157,112060.0,112050.0,0.6159349]
[1760199404232,0.002,112060.0,112050.0,0.6159349]
[1760199404630,0.002,112060.0,112050.0,1.0159349]
[1760199405532,0.091157,112060.0,112050.0,1.0159349]
[1760199406327,0.56122878,112060.0,112050.0,0.2551349]
[1760199406533,0.56122878,112060.0,112050.0,0.16597]
[1760199407330,0.92202878,112060.0,112050.0,0.16597]
[1760199407524,0.90336899,112060.0,112050.0,0.16597]
[1760199410231,1.35478098,112060.0,112050.0,0.14393]
[1760199410433,0.90336899,112060.0,112050.0,0.14393]
[1760199410732,1.35478098,112060.0,112050.0,0.14393]
[1760199412032,0.90336899,112060.0,112050.0,0.16558]
[1760199412229,0.90336899,112060.0,112050.0,0.14393]
[1760199414236,0.90336899,112060.0,112050.0,0.16558]
[1760199415537,0.91237809,112060.0,112050.0,0.14393]
[1760199417539,1.36379008,112060.0,112050.0,0.14393]
[1760199419236,0.4609661,112060.0,112050.0,0.14393]
[1760199419443,1.36379008,112060.0,112050.0,0.14393]
[1760199420344,1.76379008,112060.0,112050.0,0.14393]
[1760199424047,1.76427353,112060.0,112050.0,0.14393]
[1760199430958,1.76549414,112060.0,112050.0,0.14393]
[1760199431355,1.78937677,112060.0,112050.0,0.14393]
[1760199431556,1.76549414,112060.0,112050.0,0.14393]
[1760199432557,1.76549414,112060.0,112050.0,0.16558]
[1760199432756,0.46267016,112060.0,112050.0,0.16668]
[1760199432960,0.91408215,112060.0,112050.0,0.16668]
[1760199435266,0.55328215,112060.0,112050.0,0.655845]
[1760199435556,0.55328215,112060.0,112050.0,1.016645]
[1760199435557,0.46412515,112060.0,112050.0,1.016645]
[1760199435763,0.01271316,112060.0,112050.0,1.46805699]
[1760199436355,0.46412515,112060.0,112050.0,1.016645]
[1760199437163,0.55328215,112060.0,112050.0,1.016645]
[1760199437763,0.55376596,112060.0,112050.0,1.016645]
[1760199439355,0.55376596,112060.0,112050.0,0.56668]
[1760199439560,1.36597795,112060.0,112050.0,0.14393]
[1760199439760,1.76597795,112060.0,112050.0,0.14393]
[1760199440159,0.99198868,112050.0,112040.0,0.01393]
[1760199440361,1.35278868,112050.0,112040.0,0.03393]
[1760199440660,1.35278868,112050.0,112040.0,0.05668]
[1760199440865,1.36398565,112050.0,112040.0,0.05668]
[1760199441460,1.36398565,112050.0,112040.0,0.03393]
[1760199444163,1.36398565,112050.0,112040.0,0.05668]
[1760199445366,1.27482095,112050.0,112040.0,0.05668]
[1760199445663,0.82340896,112050.0,112040.0,0.05668]
[1760199445859,0.55177206,112050.0,112040.0,0.05668]
[1760199446066,1.00318405,112050.0,112040.0,0.05668]
[1760199446270,0.55177206,112050.0,112040.0,0.45668]
[1760199446569,1.00318405,112050.0,112040.0,0.03393]
[1760199446768,1.36398405,112050.0,112040.0,0.03393]
[1760199451672,1.76398405,112050.0,112040.0,0.03393]
[1760199452771,2.21539604,112050.0,112040.0,0.02]
[1760199452980,2.21539604,112050.0,112030.0,0.01393]
[1760199452981,0.0891702,112040.0,112030.0,0.01393]
[1760199453274,1.35279418,112040.0,112030.0,0.13393]
[1760199453974,1.36399115,112040.0,112030.0,0.13393]
[1760199456876,0.91257916,112040.0,112030.0,0.13393]
[1760199457369,1.36399115,112040.0,112030.0,0.13393]
[1760199457574,0.91257916,112040.0,112030.0,0.13393]
[1760199458975,0.91357916,112040.0,112030.0,0.13393]
[1760199459173,0.91457916,112040.0,112030.0,0.13393]
[1760199459374,1.36599115,112040.0,112030.0,0.13393]
[1760199459676,0.0891783,112030.0,112020.0,0.01289]
[1760199459870,0.86264378,112030.0,112020.0,0.13289]
[1760199460068,0.0891863,112020.0,112010.0,0.04566435]
[1760199460268,0.85145481,112020.0,112010.0,0.05268435]
[1760199460873,0.86265178,112020.0,112010.0,0.05268435]
[1760199461078,0.86265178,112020.0,112010.0,0.07566435]
[1760199462176,0.86265178,112020.0,112010.0,0.05268435]
[1760199462377,0.86265178,112020.0,112010.0,0.04362413]
[1760199462775,0.93463114,112020.0,112010.0,0.04362413]
[1760199469286,0.93463114,112020.0,112010.0,0.06478413]
[1760199470084,0.93463114,112020.0,112010.0,0.04362413]
[1760199470586,0.93463114,112020.0,112010.0,0.06478413]
[1760199471892,0.93463114,112020.0,112010.0,0.04362413]
[1760199472791,0.93463114,112020.0,112010.0,0.06478413]
[1760199474289,0.08317633,112020.0,112010.0,0.95544834]
[1760199474494,0.17236413,112020.0,112010.0,0.06478413]
[1760199474689,0.57383264,112020.0,112010.0,0.06478413]
[1760199475095,0.57383264,112020.0,112010.0,0.55397983]
[1760199475096,0.17236413,112020.0,112010.0,0.55397983]
[1760199476990,0.08317633,112020.0,112010.0,0.55397983]
[1760199477195,0.17236453,112020.0,112010.0,0.91477983]
[1760199477396,0.08317633,112020.0,112010.0,0.91477983]
[1760199478197,0.17236533,112020.0,112010.0,0.91477983]
[1760199478799,0.08317633,112020.0,112010.0,0.91477983]
[1760199480601,0.17236483,112020.0,112010.0,0.46478413]
[1760199480899,0.17236483,112020.0,112010.0,0.55398063]
[1760199481300,0.17236483,112020.0,112010.0,0.91478063]
[1760199481999,0.08317633,112020.0,112010.0,0.91478063]
[1760199482202,0.17236483,112020.0,112010.0,0.91478063]
[1760199482702,0.08317633,112020.0,112010.0,0.91478063]
[1760199482904,0.17236483,112020.0,112010.0,0.91478063]
[1760199483300,0.57383334,112020.0,112010.0,0.91478063]
[1760199483500,0.17236483,112020.0,112010.0,0.91478063]
[1760199483702,0.08317633,112020.0,112010.0,0.91478063]
[1760199484105,0.17236443,112020.0,112010.0,0.91478063]
[1760199486104,0.57383294,112020.0,112010.0,0.91478063]
[1760199486307,0.17236443,112020.0,112010.0,0.91478063]
[1760199487710,0.57383294,112020.0,112010.0,0.91478063]
[1760199487911,1.33463294,112020.0,112010.0,0.04362413]
[1760199494118,2.05863705,112020.0,112010.0,0.04362413]
[1760199495209,1.65716854,112020.0,112010.0,0.04362413]
[1760199495614,2.05863705,112020.0,112010.0,0.04362413]
[1760199495815,0.93463294,112020.0,112010.0,0.04362413]
[1760199496817,1.63530631,112020.0,112010.0,0.04362413]
[1760199497315,0.53316443,112020.0,112010.0,0.06510413]
[1760199497615,0.57383294,112020.0,112010.0,0.06510413]
[1760199498513,0.17236403,112020.0,112010.0,0.15429983]
[1760199498715,0.17236403,112020.0,112010.0,0.06510413]
[1760199502418,0.17236403,112020.0,112010.0,0.46510413]
[1760199503120,0.17236403,112020.0,112010.0,0.82590413]
[1760199506119,0.17236403,112020.0,112010.0,0.91509903]
[1760199507025,0.17236453,112020.0,112010.0,1.31656754]
[1760199507224,0.17236453,112020.0,112010.0,0.91509903]
[1760199508823,0.57383304,112020.0,112010.0,0.82590413]
[1760199509724,0.57383304,112020.0,112010.0,0.06510413]
[1760199509923,0.57383304,112020.0,112010.0,0.04362413]
[1760199510123,0.57383304,112020.0,112010.0,0.06510413]
[1760199510417,0.57383304,112020.0,112010.0,0.15429803]
[1760199513928,0.17236453,112020.0,112010.0,0.51509803]
[1760199514129,0.57383304,112020.0,112010.0,0.51509803]
[1760199519529,0.62396998,112020.0,112010.0,0.51509803]
[1760199519930,0.62396998,112020.0,112010.0,0.42590413]
[1760199520136,0.62396998,112020.0,112010.0,0.51509783]